[Event "Late-Titled-Tuesday-Blitz-February-20-2024"]
[Site "Chess.com"]
[Date "2024.02.20"]
[Round "3"]
[White "PNEPaul"]
[Black "carloseduar100"]
[Result "0-1"]
[WhiteElo "1984"]
[BlackElo "2357"]
[TimeControl "180+1"]
[EndTime "14:28:10 PST"]
[Termination "carloseduar100 won on time"]

1. e4 {[%clk 0:02:51.9]} 1... e6 {[%clk 0:03:00.1]} 2. d4 {[%clk 0:02:51.3]}
2... d5 {[%clk 0:02:57.8]} 3. e5 {[%clk 0:02:50.8]} 3... c5 {[%clk 0:02:56.8]}
4. Qg4 {[%clk 0:02:50.5]} 4... Nc6 {[%clk 0:02:56.1]} 5. Nf3 {[%clk 0:02:50.6]}
5... cxd4 {[%clk 0:02:52.3]} 6. Bd3 {[%clk 0:02:50.3]} 6... Qb6 {[%clk
0:02:48.7]} 7. O-O {[%clk 0:02:49.4]} 7... Bd7 {[%clk 0:02:48.8]} 8. a3 {[%clk
0:02:48.6]} 8... Nge7 {[%clk 0:02:48.9]} 9. Qg3 {[%clk 0:02:47.9]} 9... Ng6
{[%clk 0:02:48.6]} 10. c3 {[%clk 0:02:47.6]} 10... dxc3 {[%clk 0:02:48]} 11.
Nxc3 {[%clk 0:02:47.6]} 11... a6 {[%clk 0:02:39.7]} 12. Re1 {[%clk 0:02:36.5]}
12... Rc8 {[%clk 0:02:31.7]} 13. h4 {[%clk 0:02:34.7]} 13... Na5 {[%clk
0:02:23.6]} 14. h5 {[%clk 0:02:19]} 14... Ne7 {[%clk 0:02:20.6]} 15. Nd2 {[%clk
0:02:12]} 15... Nb3 {[%clk 0:02:08.2]} 16. Nxb3 {[%clk 0:02:11.2]} 16... Qxb3
{[%clk 0:02:09.1]} 17. Ne2 {[%clk 0:01:33]} 17... h6 {[%clk 0:01:56.9]} 18. Nd4
{[%clk 0:01:32.7]} 18... Qb6 {[%clk 0:01:55.9]} 19. Be3 {[%clk 0:01:30.8]} 19...
Qxb2 {[%clk 0:01:46.2]} 20. Reb1 {[%clk 0:01:10.5]} 20... Qc3 {[%clk 0:01:45.4]}
21. Bf1 {[%clk 0:01:10]} 21... Nf5 {[%clk 0:01:44.9]} 22. Nxf5 {[%clk
0:01:07.4]} 22... exf5 {[%clk 0:01:45.1]} 23. Rc1 {[%clk 0:01:03.2]} 23... Qa5
{[%clk 0:01:39.6]} 24. Rxc8+ {[%clk 0:01:00.7]} 24... Bxc8 {[%clk 0:01:40.5]}
25. e6 {[%clk 0:00:51.5]} 25... Bxe6 {[%clk 0:01:38]} 26. Qb8+ {[%clk
0:00:50.9]} 26... Qd8 {[%clk 0:01:38.6]} 27. Qxb7 {[%clk 0:00:50.9]} 27... Be7
{[%clk 0:01:34.8]} 28. Bb6 {[%clk 0:00:46.3]} 28... Qc8 {[%clk 0:01:32.3]} 29.
Qa7 {[%clk 0:00:39.1]} 29... O-O {[%clk 0:01:27.2]} 30. Qxe7 {[%clk 0:00:36.2]}
30... d4 {[%clk 0:01:21.2]} 31. Qc5 {[%clk 0:00:33.6]} 31... Qb7 {[%clk
0:01:04.3]} 32. Qxd4 {[%clk 0:00:32.2]} 32... Re8 {[%clk 0:00:58.4]} 33. a4
{[%clk 0:00:15.9]} 33... f4 {[%clk 0:00:58.5]} 34. a5 {[%clk 0:00:15]} 34... f3
{[%clk 0:00:58.7]} 35. gxf3 {[%clk 0:00:13.7]} 35... Qxf3 {[%clk 0:00:58.7]} 36.
Bg2 {[%clk 0:00:13.4]} 36... Qxh5 {[%clk 0:00:59.2]} 37. Qd1 {[%clk 0:00:10.3]}
37... Bg4 {[%clk 0:00:58.1]} 38. Qd3 {[%clk 0:00:05.9]} 38... Be2 {[%clk
0:00:49.5]} 39. Qg3 {[%clk 0:00:05.3]} 39... Qe5 {[%clk 0:00:37.3]} 40. Qxe5
{[%clk 0:00:04]} 40... Rxe5 {[%clk 0:00:38.2]} 41. Be3 {[%clk 0:00:03.9]} 41...
Bb5 {[%clk 0:00:35.7]} 42. Re1 {[%clk 0:00:03.4]} 42... g5 {[%clk 0:00:34.6]}
43. Bd2 {[%clk 0:00:03.4]} 43... Rd5 {[%clk 0:00:34.7]} 44. Be3 {[%clk
0:00:03.3]} 44... Rd3 {[%clk 0:00:28.9]} 45. Bb6 {[%clk 0:00:02.8]} 45... Rb3
{[%clk 0:00:25.1]} 46. Kh2 {[%clk 0:00:02.5]} 46... Kg7 {[%clk 0:00:19.4]} 47.
Rd1 {[%clk 0:00:02.4]} 47... Rb4 {[%clk 0:00:18.4]} 48. Rd4 {[%clk 0:00:01.6]}
48... Rxd4 {[%clk 0:00:18.2]} 49. Bxd4+ {[%clk 0:00:01.1]} 49... Kg6 {[%clk
0:00:17.5]} 50. Bb6 {[%clk 0:00:01.1]} 50... f5 {[%clk 0:00:17.8]} 51. Bd5
{[%clk 0:00:01]} 51... g4 {[%clk 0:00:18]} 52. f3 {[%clk 0:00:01.2]} 52... h5
{[%clk 0:00:18.1]} 53. fxg4 {[%clk 0:00:01.5]} 53... hxg4 {[%clk 0:00:18.6]} 54.
Kg3 {[%clk 0:00:01.8]} 54... Kg5 {[%clk 0:00:18.6]} 55. Be3+ {[%clk 0:00:01.8]}
55... Kf6 {[%clk 0:00:18.9]} 56. Bf4 {[%clk 0:00:02]} 56... Kg6 {[%clk
0:00:19.1]} 57. Bc7 {[%clk 0:00:02]} 57... Bd3 {[%clk 0:00:19.5]} 58. Bf4 {[%clk
0:00:01.8]} 58... Kh5 {[%clk 0:00:19.9]} 59. Bc7 {[%clk 0:00:01.7]} 59... Kg6
{[%clk 0:00:20.2]} 60. Bf4 {[%clk 0:00:01.8]} 60... Kf6 {[%clk 0:00:20.9]} 61.
Bc7 {[%clk 0:00:01.9]} 61... Ke7 {[%clk 0:00:21.8]} 62. Bf4 {[%clk 0:00:01.8]}
62... Kd7 {[%clk 0:00:22.7]} 63. Bg5 {[%clk 0:00:01.2]} 63... Kd6 {[%clk
0:00:22.4]} 0-1

[Event "Late-Titled-Tuesday-Blitz-February-20-2024"]
[Site "Chess.com"]
[Date "2024.02.20"]
[Round "3"]
[White "rezamahdavi2008"]
[Black "DrRiebert"]
[Result "1-0"]
[WhiteElo "2835"]
[BlackElo "2342"]
[TimeControl "180+1"]
[EndTime "14:28:22 PST"]
[Termination "rezamahdavi2008 won by checkmate"]

1. d4 {[%clk 0:03:00.9]} 1... d5 {[%clk 0:03:00.1]} 2. Nf3 {[%clk 0:03:00.7]}
2... Nf6 {[%clk 0:03:00.4]} 3. c4 {[%clk 0:03:01.2]} 3... c6 {[%clk 0:03:01.1]}
4. g3 {[%clk 0:02:37]} 4... h6 {[%clk 0:02:57.5]} 5. Bg2 {[%clk 0:02:37.4]} 5...
Bf5 {[%clk 0:02:57.7]} 6. Nbd2 {[%clk 0:02:37]} 6... e6 {[%clk 0:02:58]} 7. O-O
{[%clk 0:02:36.5]} 7... Be7 {[%clk 0:02:58.5]} 8. b3 {[%clk 0:02:37.1]} 8... O-O
{[%clk 0:02:58.5]} 9. Bb2 {[%clk 0:02:35.9]} 9... Nbd7 {[%clk 0:02:58.9]} 10.
Re1 {[%clk 0:02:36.1]} 10... b6 {[%clk 0:02:58.8]} 11. Ne5 {[%clk 0:02:35.8]}
11... Rc8 {[%clk 0:02:58.7]} 12. e4 {[%clk 0:02:35.3]} 12... dxe4 {[%clk
0:02:59.2]} 13. Nxe4 {[%clk 0:02:36.2]} 13... Nxe4 {[%clk 0:02:59.9]} 14. Bxe4
{[%clk 0:02:37.1]} 14... Bxe4 {[%clk 0:03:00.7]} 15. Rxe4 {[%clk 0:02:38]} 15...
Nf6 {[%clk 0:03:01.4]} 16. Re2 {[%clk 0:02:37.5]} 16... Qc7 {[%clk 0:03:01.7]}
17. Qc2 {[%clk 0:02:38.1]} 17... Rfd8 {[%clk 0:03:01.9]} 18. Rae1 {[%clk
0:02:38.6]} 18... c5 {[%clk 0:03:01.5]} 19. d5 {[%clk 0:02:29.8]} 19... exd5
{[%clk 0:01:57.7]} 20. cxd5 {[%clk 0:02:28.6]} 20... Nxd5 {[%clk 0:01:52.9]} 21.
Nxf7 {[%clk 0:01:44.3]} 21... Kxf7 {[%clk 0:01:36.1]} 22. Qc4 {[%clk 0:01:37.7]}
22... Bf6 {[%clk 0:01:14]} 23. Bxf6 {[%clk 0:01:36.8]} 23... Kxf6 {[%clk
0:01:14.9]} 24. Re6+ {[%clk 0:01:33.8]} 24... Kf7 {[%clk 0:01:10.5]} 25. R1e5
{[%clk 0:01:33.4]} 25... Qb7 {[%clk 0:01:07.9]} 26. Qe4 {[%clk 0:01:23.2]} 26...
Kg8 {[%clk 0:01:06.9]} 27. h4 {[%clk 0:01:19.3]} 27... Rb8 {[%clk 0:00:58.2]}
28. Qc4 {[%clk 0:01:02.2]} 28... Kh8 {[%clk 0:00:51.9]} 29. Qc1 {[%clk
0:00:47.5]} 29... Qf7 {[%clk 0:00:37.3]} 30. Qc4 {[%clk 0:00:38.9]} 30... Rf8
{[%clk 0:00:33.2]} 31. f4 {[%clk 0:00:27]} 31... Nf6 {[%clk 0:00:19.6]} 32. f5
{[%clk 0:00:17.2]} 32... Rbd8 {[%clk 0:00:16.4]} 33. Kg2 {[%clk 0:00:15.5]}
33... Qd7 {[%clk 0:00:16.1]} 34. Kh3 {[%clk 0:00:13.6]} 34... Qd1 {[%clk
0:00:15.2]} 35. Re1 {[%clk 0:00:12]} 35... Qf3 {[%clk 0:00:14.4]} 36. Rf1 {[%clk
0:00:12.6]} 36... Qd5 {[%clk 0:00:14.2]} 37. Qf4 {[%clk 0:00:12.2]} 37... Nh5
{[%clk 0:00:12.7]} 38. Qg4 {[%clk 0:00:12.6]} 38... Nf6 {[%clk 0:00:11.7]} 39.
Qf4 {[%clk 0:00:13.2]} 39... Qd4 {[%clk 0:00:11.3]} 40. Qf3 {[%clk 0:00:12.8]}
40... Nd5 {[%clk 0:00:09.5]} 41. Rfe1 {[%clk 0:00:11.5]} 41... Nf6 {[%clk
0:00:07.5]} 42. R1e2 {[%clk 0:00:12.1]} 42... Qd5 {[%clk 0:00:07.7]} 43. Qf1
{[%clk 0:00:10.6]} 43... Nh5 {[%clk 0:00:07]} 44. R6e5 {[%clk 0:00:10.3]} 44...
Qd7 {[%clk 0:00:07.1]} 45. Rf2 {[%clk 0:00:09.6]} 45... Nf6 {[%clk 0:00:07.3]}
46. Rf4 {[%clk 0:00:09.2]} 46... Nd5 {[%clk 0:00:07.8]} 47. Rf3 {[%clk
0:00:09.1]} 47... Ne7 {[%clk 0:00:07.1]} 48. g4 {[%clk 0:00:09.4]} 48... Rf6
{[%clk 0:00:07.4]} 49. g5 {[%clk 0:00:09.2]} 49... Rxf5 {[%clk 0:00:06.4]} 50.
Rfxf5 {[%clk 0:00:08.8]} 50... Nxf5 {[%clk 0:00:06.9]} 51. Qxf5 {[%clk
0:00:08.7]} 51... Qxf5+ {[%clk 0:00:06.3]} 52. Rxf5 {[%clk 0:00:09.6]} 52... Rd2
{[%clk 0:00:06.3]} 53. g6 {[%clk 0:00:09.5]} 53... Kg8 {[%clk 0:00:06.8]} 54.
Kg4 {[%clk 0:00:09.5]} 54... Rd4+ {[%clk 0:00:07]} 55. Kf3 {[%clk 0:00:09.3]}
55... h5 {[%clk 0:00:07]} 56. Rxh5 {[%clk 0:00:09.4]} 56... Rd2 {[%clk
0:00:07.4]} 57. Rf5 {[%clk 0:00:08.7]} 57... Rxa2 {[%clk 0:00:07.4]} 58. Rd5
{[%clk 0:00:09.1]} 58... Kf8 {[%clk 0:00:07.5]} 59. Rd7 {[%clk 0:00:08]} 59...
Ra3 {[%clk 0:00:07]} 60. Kf4 {[%clk 0:00:05.8]} 60... Rxb3 {[%clk 0:00:06.9]}
61. Rf7+ {[%clk 0:00:06.6]} 61... Ke8 {[%clk 0:00:06.8]} 62. Rxg7 {[%clk
0:00:07]} 62... c4 {[%clk 0:00:07]} 63. Rc7 {[%clk 0:00:06.9]} 63... c3 {[%clk
0:00:05.1]} 64. g7 {[%clk 0:00:07.5]} 64... Rb4+ {[%clk 0:00:03.7]} 65. Kf5
{[%clk 0:00:07.8]} 65... Rb5+ {[%clk 0:00:04.1]} 66. Kf6 {[%clk 0:00:07.8]}
66... Kd8 {[%clk 0:00:04.9]} 67. Rxa7 {[%clk 0:00:08]} 67... Rc5 {[%clk
0:00:04.9]} 68. g8=Q# {[%clk 0:00:08.3]} 1-0

[Event "Late-Titled-Tuesday-Blitz-February-20-2024"]
[Site "Chess.com"]
[Date "2024.02.20"]
[Round "3"]
[White "campochess"]
[Black "dosto07"]
[Result "1/2-1/2"]
[WhiteElo "2168"]
[BlackElo "2502"]
[TimeControl "180+1"]
[EndTime "14:28:25 PST"]
[Termination "Game drawn - insufficient material"]

1. Nf3 {[%clk 0:03:00]} 1... d5 {[%clk 0:02:59]} 2. b3 {[%clk 0:02:59.9]} 2...
Nf6 {[%clk 0:02:58.1]} 3. Bb2 {[%clk 0:02:59.9]} 3... Bg4 {[%clk 0:02:58.1]} 4.
Ne5 {[%clk 0:02:54.2]} 4... Bf5 {[%clk 0:02:57.2]} 5. d3 {[%clk 0:02:52.6]} 5...
Nbd7 {[%clk 0:02:57]} 6. Nxd7 {[%clk 0:02:48.2]} 6... Qxd7 {[%clk 0:02:56.5]} 7.
Nd2 {[%clk 0:02:48.1]} 7... e6 {[%clk 0:02:55.1]} 8. Nf3 {[%clk 0:02:48.1]} 8...
Bd6 {[%clk 0:02:53.1]} 9. g3 {[%clk 0:02:45.6]} 9... Qe7 {[%clk 0:02:49.7]} 10.
a4 {[%clk 0:02:43.7]} 10... h6 {[%clk 0:02:48.1]} 11. Bg2 {[%clk 0:02:43.6]}
11... O-O {[%clk 0:02:46.9]} 12. O-O {[%clk 0:02:43.3]} 12... c6 {[%clk
0:02:46.4]} 13. Be5 {[%clk 0:02:35.6]} 13... Bg4 {[%clk 0:02:44.9]} 14. Bxd6
{[%clk 0:02:35.1]} 14... Qxd6 {[%clk 0:02:44.8]} 15. Qd2 {[%clk 0:02:34.1]}
15... a5 {[%clk 0:02:38.6]} 16. Rad1 {[%clk 0:02:32.8]} 16... Bxf3 {[%clk
0:02:38.1]} 17. Bxf3 {[%clk 0:02:31.6]} 17... Rfd8 {[%clk 0:02:36.1]} 18. Qe1
{[%clk 0:02:23.8]} 18... Qc5 {[%clk 0:02:29.9]} 19. Rd2 {[%clk 0:02:21.2]} 19...
e5 {[%clk 0:02:26.3]} 20. e4 {[%clk 0:02:21.1]} 20... dxe4 {[%clk 0:02:21.7]}
21. Bxe4 {[%clk 0:02:20.3]} 21... Rd4 {[%clk 0:02:19.4]} 22. Bg2 {[%clk
0:02:13.9]} 22... Rad8 {[%clk 0:02:17.8]} 23. Re2 {[%clk 0:02:13.6]} 23... Nd7
{[%clk 0:02:13.5]} 24. Kh1 {[%clk 0:02:04.3]} 24... Rd6 {[%clk 0:02:07.2]} 25.
f4 {[%clk 0:01:59.8]} 25... exf4 {[%clk 0:02:03.2]} 26. Rxf4 {[%clk 0:01:59.4]}
26... Nf6 {[%clk 0:01:57.8]} 27. Qf2 {[%clk 0:01:33.6]} 27... Qxf2 {[%clk
0:01:55.4]} 28. Rfxf2 {[%clk 0:01:33]} 28... Kf8 {[%clk 0:01:50.1]} 29. h3
{[%clk 0:01:31.5]} 29... Re6 {[%clk 0:01:44.5]} 30. Kg1 {[%clk 0:01:29.7]} 30...
Ke7 {[%clk 0:01:43.5]} 31. Rxe6+ {[%clk 0:01:28.8]} 31... fxe6 {[%clk
0:01:43.3]} 32. Re2 {[%clk 0:01:27.6]} 32... Kd6 {[%clk 0:01:40.1]} 33. Kf2
{[%clk 0:01:27.3]} 33... Rb8 {[%clk 0:01:39.9]} 34. Ke1 {[%clk 0:01:26.7]} 34...
b5 {[%clk 0:01:39.3]} 35. axb5 {[%clk 0:01:24.7]} 35... cxb5 {[%clk 0:01:39.6]}
36. Kd2 {[%clk 0:01:21.5]} 36... a4 {[%clk 0:01:36.7]} 37. bxa4 {[%clk
0:01:19.9]} 37... bxa4 {[%clk 0:01:37.1]} 38. Re1 {[%clk 0:01:16.1]} 38... h5
{[%clk 0:01:34.6]} 39. Ra1 {[%clk 0:01:15.4]} 39... Rb4 {[%clk 0:01:31.3]} 40.
Kc3 {[%clk 0:01:14.7]} 40... Kc5 {[%clk 0:01:26.5]} 41. Re1 {[%clk 0:01:10.5]}
41... Rb6 {[%clk 0:01:25.4]} 42. Re5+ {[%clk 0:01:07.8]} 42... Kd6 {[%clk
0:01:21.6]} 43. Ra5 {[%clk 0:01:07.2]} 43... Nd5+ {[%clk 0:01:14.7]} 44. Bxd5
{[%clk 0:01:06.1]} 44... exd5 {[%clk 0:01:15.2]} 45. Rxa4 {[%clk 0:01:06.3]}
45... Ke5 {[%clk 0:01:13.8]} 46. Ra7 {[%clk 0:01:03.4]} 46... Rg6 {[%clk
0:01:13.4]} 47. Re7+ {[%clk 0:00:58.2]} 47... Kf5 {[%clk 0:01:08.1]} 48. Kd4
{[%clk 0:00:54.3]} 48... Rxg3 {[%clk 0:01:06.4]} 49. Kxd5 {[%clk 0:00:52.8]}
49... g5 {[%clk 0:01:04.9]} 50. Rf7+ {[%clk 0:00:45.7]} 50... Kg6 {[%clk
0:01:03]} 51. Rf2 {[%clk 0:00:43.3]} 51... Rxh3 {[%clk 0:01:03.1]} 52. d4 {[%clk
0:00:43.3]} 52... g4 {[%clk 0:01:01.8]} 53. c4 {[%clk 0:00:41.6]} 53... g3
{[%clk 0:00:58.2]} 54. Rf8 {[%clk 0:00:40.9]} 54... Kg7 {[%clk 0:00:55.8]} 55.
Rf5 {[%clk 0:00:38.3]} 55... Kg6 {[%clk 0:00:55.4]} 56. Rf8 {[%clk 0:00:38.2]}
56... Kg5 {[%clk 0:00:52.6]} 57. c5 {[%clk 0:00:35.9]} 57... Rh1 {[%clk
0:00:52.7]} 58. Kc6 {[%clk 0:00:33.8]} 58... h4 {[%clk 0:00:49.8]} 59. d5 {[%clk
0:00:34.1]} 59... Kg4 {[%clk 0:00:46.2]} 60. d6 {[%clk 0:00:34]} 60... Rd1
{[%clk 0:00:46.2]} 61. Kc7 {[%clk 0:00:28.7]} 61... g2 {[%clk 0:00:45.5]} 62.
Rg8+ {[%clk 0:00:27.4]} 62... Kf3 {[%clk 0:00:45.8]} 63. c6 {[%clk 0:00:27.3]}
63... h3 {[%clk 0:00:35.3]} 64. d7 {[%clk 0:00:27]} 64... h2 {[%clk 0:00:33.9]}
65. Kc8 {[%clk 0:00:26.1]} 65... g1=Q {[%clk 0:00:33.5]} 66. Rxg1 {[%clk
0:00:23.7]} 66... hxg1=Q {[%clk 0:00:33]} 67. c7 {[%clk 0:00:23.2]} 67... Qa7
{[%clk 0:00:30.3]} 68. Kd8 {[%clk 0:00:15.7]} 68... Qa8+ {[%clk 0:00:27.2]} 69.
c8=Q {[%clk 0:00:14.6]} 69... Qa5+ {[%clk 0:00:23.4]} 70. Qc7 {[%clk 0:00:13.9]}
70... Qg5+ {[%clk 0:00:22]} 71. Kc8 {[%clk 0:00:13]} 71... Rc1 {[%clk
0:00:22.1]} 72. d8=Q {[%clk 0:00:12.3]} 72... Rxc7+ {[%clk 0:00:21.5]} 73. Qxc7
{[%clk 0:00:12.2]} 73... Qf5+ {[%clk 0:00:20.6]} 74. Qd7 {[%clk 0:00:12]} 74...
Qc2+ {[%clk 0:00:19.7]} 75. Qc7 {[%clk 0:00:11.6]} 75... Qf5+ {[%clk 0:00:19.2]}
76. Qd7 {[%clk 0:00:11.6]} 76... Qf8+ {[%clk 0:00:19]} 77. Kc7 {[%clk
0:00:09.9]} 77... Qc5+ {[%clk 0:00:19.2]} 78. Qc6+ {[%clk 0:00:09.8]} 78...
Qxc6+ {[%clk 0:00:19.6]} 79. Kxc6 {[%clk 0:00:09.9]} 1/2-1/2

[Event "Late-Titled-Tuesday-Blitz-February-20-2024"]
[Site "Chess.com"]
[Date "2024.02.20"]
[Round "3"]
[White "gmtalentoso"]
[Black "K_A_S_T_O_R"]
[Result "1/2-1/2"]
[WhiteElo "2478"]
[BlackElo "2787"]
[TimeControl "180+1"]
[EndTime "14:28:28 PST"]
[Termination "Game drawn - insufficient material"]

1. e4 {[%clk 0:02:54.7]} 1... c5 {[%clk 0:02:59.9]} 2. Nf3 {[%clk 0:02:50.5]}
2... d6 {[%clk 0:03:00.1]} 3. Bb5+ {[%clk 0:02:50.7]} 3... Nc6 {[%clk
0:02:59.2]} 4. O-O {[%clk 0:02:49.9]} 4... Bd7 {[%clk 0:02:59.5]} 5. Re1 {[%clk
0:02:49.9]} 5... Nf6 {[%clk 0:02:59.9]} 6. c3 {[%clk 0:02:48.2]} 6... a6 {[%clk
0:03:00.2]} 7. Bf1 {[%clk 0:02:48]} 7... Bg4 {[%clk 0:03:00]} 8. h3 {[%clk
0:02:48.5]} 8... Bxf3 {[%clk 0:02:59.7]} 9. Qxf3 {[%clk 0:02:48]} 9... g6 {[%clk
0:03:00.6]} 10. d3 {[%clk 0:02:45.5]} 10... Bg7 {[%clk 0:02:59.9]} 11. Be3
{[%clk 0:02:46]} 11... Nd7 {[%clk 0:03:00.1]} 12. Nd2 {[%clk 0:02:43.7]} 12...
O-O {[%clk 0:03:00.4]} 13. Qd1 {[%clk 0:02:43.8]} 13... b5 {[%clk 0:03:00.2]}
14. Nf3 {[%clk 0:02:42.8]} 14... b4 {[%clk 0:03:00.6]} 15. d4 {[%clk 0:02:41.9]}
15... bxc3 {[%clk 0:03:00.3]} 16. bxc3 {[%clk 0:02:41.5]} 16... Qa5 {[%clk
0:03:00.9]} 17. Qc2 {[%clk 0:02:14.7]} 17... cxd4 {[%clk 0:02:57.4]} 18. cxd4
{[%clk 0:02:10.7]} 18... Rfc8 {[%clk 0:02:57.8]} 19. Qe2 {[%clk 0:01:45.5]}
19... d5 {[%clk 0:02:47.2]} 20. e5 {[%clk 0:01:41.3]} 20... e6 {[%clk
0:02:44.5]} 21. a3 {[%clk 0:01:35.5]} 21... Nb6 {[%clk 0:02:38.7]} 22. Bg5
{[%clk 0:01:26.6]} 22... Qa4 {[%clk 0:02:34.1]} 23. Red1 {[%clk 0:01:21.3]}
23... Nd7 {[%clk 0:02:32.2]} 24. h4 {[%clk 0:01:16]} 24... Na5 {[%clk
0:02:29.8]} 25. h5 {[%clk 0:01:12.1]} 25... Rc2 {[%clk 0:02:21]} 26. Qe3 {[%clk
0:01:05.7]} 26... Nc4 {[%clk 0:02:17.5]} 27. Qf4 {[%clk 0:01:04.2]} 27... Rc3
{[%clk 0:02:11.2]} 28. Bxc4 {[%clk 0:00:58.7]} 28... Qxc4 {[%clk 0:02:09.9]} 29.
Be7 {[%clk 0:00:52.9]} 29... Re8 {[%clk 0:02:01.2]} 30. Bd6 {[%clk 0:00:52.5]}
30... Qe2 {[%clk 0:01:33.1]} 31. h6 {[%clk 0:00:36]} 31... Bh8 {[%clk
0:01:26.8]} 32. Ng5 {[%clk 0:00:34.4]} 32... f6 {[%clk 0:01:13.2]} 33. exf6
{[%clk 0:00:28.6]} 33... Bxf6 {[%clk 0:01:13.5]} 34. Re1 {[%clk 0:00:23.9]}
34... Bxg5 {[%clk 0:01:06.8]} 35. Qxg5 {[%clk 0:00:21.7]} 35... Qh5 {[%clk
0:01:02.4]} 36. Qxh5 {[%clk 0:00:20.6]} 36... gxh5 {[%clk 0:01:02.4]} 37. Rec1
{[%clk 0:00:20.2]} 37... Rc4 {[%clk 0:01:02.3]} 38. Rxc4 {[%clk 0:00:19.6]}
38... dxc4 {[%clk 0:01:02.3]} 39. Rc1 {[%clk 0:00:20.3]} 39... Rc8 {[%clk
0:01:02.4]} 40. Bc5 {[%clk 0:00:19.4]} 40... e5 {[%clk 0:01:02.8]} 41. Rxc4
{[%clk 0:00:19.5]} 41... exd4 {[%clk 0:01:02.8]} 42. Rxd4 {[%clk 0:00:14.8]}
42... Nxc5 {[%clk 0:00:58.9]} 43. Rd5 {[%clk 0:00:14.9]} 43... Ne6 {[%clk
0:00:57.6]} 44. Rxh5 {[%clk 0:00:14.5]} 44... Rc5 {[%clk 0:00:54.1]} 45. Rh4
{[%clk 0:00:14.4]} 45... Kf7 {[%clk 0:00:53.5]} 46. Ra4 {[%clk 0:00:14.3]} 46...
a5 {[%clk 0:00:53.4]} 47. f3 {[%clk 0:00:14.4]} 47... Kg6 {[%clk 0:00:53.6]} 48.
g4 {[%clk 0:00:14.5]} 48... Kxh6 {[%clk 0:00:53.5]} 49. Kf2 {[%clk 0:00:14.7]}
49... Kg5 {[%clk 0:00:53.8]} 50. Kg3 {[%clk 0:00:15]} 50... h6 {[%clk
0:00:53.6]} 51. Re4 {[%clk 0:00:15.3]} 51... Kf6 {[%clk 0:00:53.8]} 52. a4
{[%clk 0:00:13.8]} 52... Rd5 {[%clk 0:00:52.5]} 53. f4 {[%clk 0:00:13.3]} 53...
Rd3+ {[%clk 0:00:48.8]} 54. Kh4 {[%clk 0:00:13.8]} 54... Rd4 {[%clk 0:00:49.1]}
55. Re5 {[%clk 0:00:12.8]} 55... Rxa4 {[%clk 0:00:47.1]} 56. Rh5 {[%clk
0:00:12.8]} 56... Nxf4 {[%clk 0:00:46.6]} 57. Rxh6+ {[%clk 0:00:12.1]} 57...
Ng6+ {[%clk 0:00:46.8]} 58. Kh5 {[%clk 0:00:11.9]} 58... Ra1 {[%clk 0:00:34.9]}
59. Rxg6+ {[%clk 0:00:11.8]} 59... Ke5 {[%clk 0:00:35.3]} 60. Ra6 {[%clk
0:00:11.5]} 60... a4 {[%clk 0:00:32.6]} 61. Kg6 {[%clk 0:00:09.4]} 61... Kf4
{[%clk 0:00:31.3]} 62. g5 {[%clk 0:00:09.7]} 62... a3 {[%clk 0:00:30.5]} 63. Kf6
{[%clk 0:00:08.5]} 63... Ke4 {[%clk 0:00:28.7]} 64. g6 {[%clk 0:00:08.5]} 64...
Rf1+ {[%clk 0:00:28.8]} 65. Kg7 {[%clk 0:00:08.9]} 65... Rf3 {[%clk 0:00:28.7]}
66. Kg8 {[%clk 0:00:07.5]} 66... Kd4 {[%clk 0:00:28.2]} 67. g7 {[%clk
0:00:07.6]} 67... Kc4 {[%clk 0:00:28.7]} 68. Rxa3 {[%clk 0:00:07.5]} 68... Rxa3
{[%clk 0:00:27.8]} 69. Kh8 {[%clk 0:00:08.2]} 69... Rh3+ {[%clk 0:00:27.4]} 70.
Kg8 {[%clk 0:00:08.2]} 70... Kd5 {[%clk 0:00:28]} 71. Kf7 {[%clk 0:00:08.8]}
71... Rf3+ {[%clk 0:00:28.2]} 72. Kg6 {[%clk 0:00:08.6]} 72... Rg3+ {[%clk
0:00:27.3]} 73. Kf7 {[%clk 0:00:08.7]} 73... Ke5 {[%clk 0:00:27]} 74. g8=Q
{[%clk 0:00:08.7]} 74... Rxg8 {[%clk 0:00:27.5]} 75. Kxg8 {[%clk 0:00:09.1]}
1/2-1/2